bitfinex-derivatives/quotes_ETHF0:USTF0_20250620
["timestamp","ask_amount","ask_price","bid_price","bid_amount"]
[1750440662212,13.55357783,2411.6,2411.0,3.2078]
[1750440662408,2.1728,2411.6,2411.0,3.2078]
[1750440662605,5.2,2411.5,2410.6,2.2435]
[1750440662913,3.2078,2410.7,2410.0,3.2078]
[1750440663119,5.49,2410.6,2410.0,3.2078]
[1750440663620,4.3555,2411.4,2410.5,11.38077783]
[1750440663917,8.4078,2411.5,2410.6,5.4785]
[1750440664114,3.2078,2412.1,2411.4,3.2078]
[1750440664306,11.38077783,2412.9,2411.9,3.2078]
[1750440664506,2.2822,2412.9,2412.2,3.2078]
[1750440664712,5.2,2412.8,2412.2,3.27713781]
[1750440665014,3.2078,2412.4,2412.2,0.06933781]
[1750440665518,2.2822,2412.3,2411.3,3.2078]
[1750440665813,11.38077783,2411.9,2411.3,3.2078]
[1750440666013,2.124,2411.8,2411.3,3.2078]
[1750440666912,11.38077783,2411.6,2410.3,51.699]
[1750440667112,11.38077783,2411.6,2410.0,11.38077783]
[1750440667113,3.2078,2411.4,2410.6,3.2078]
[1750440667320,3.2078,2411.9,2411.2,3.2078]
[1750440667819,2.124,2411.8,2411.2,3.2078]
[1750440668020,3.2078,2411.5,2410.8,5.2792]
[1750440668213,11.38077783,2411.3,2410.4,3.2078]
[1750440668416,11.38077783,2411.9,2411.0,3.2078]
[1750440668720,3.2078,2411.4,2410.7,3.2078]
[1750440669015,14.58857783,2411.4,2410.7,3.2078]
[1750440669218,3.2078,2411.4,2411.0,3.2078]
[1750440669417,3.2078,2411.4,2410.6,3.2078]
[1750440669616,3.2078,2411.4,2410.9,3.2078]
[1750440670219,5.2,2411.3,2410.9,3.2078]
[1750440670717,5.2,2411.3,2410.1,11.38077783]
[1750440670718,0.82955,2410.7,2410.1,3.2078]
[1750440670915,3.2078,2410.5,2410.1,3.2078]
[1750440671118,2.1697,2410.6,2410.1,3.2078]
[1750440671325,3.2078,2411.3,2410.4,3.2078]
[1750440671517,3.2078,2411.3,2410.5,3.2078]
[1750440671717,3.2078,2411.3,2410.9,3.2078]
[1750440672117,5.2,2411.2,2410.9,3.2078]
[1750440672518,3.2078,2411.3,2411.0,2.0915]
[1750440673218,3.2078,2412.4,2411.2,14.58857783]
[1750440673415,0.08290842,2412.3,2412.1,3.2078]
[1750440673615,0.08290842,2412.3,2412.2,2.0915]
[1750440674019,5.08290842,2412.3,2412.2,0.06933781]
[1750440674419,5.0,2412.3,2411.0,3.2078]
[1750440674619,3.2078,2412.3,2411.6,3.2078]
[1750440674825,3.2078,2412.6,2411.9,3.2078]
[1750440675024,5.2,2412.5,2412.2,0.06933781]
[1750440675227,3.2078,2412.3,2412.2,0.06933781]
[1750440675727,5.2,2412.5,2412.2,0.06933781]
[1750440676322,3.2078,2412.6,2412.2,0.06933781]
[1750440676522,3.2078,2413.6,2412.5,3.2078]
[1750440676730,3.2078,2413.6,2413.0,3.2078]
[1750440676925,3.2078,2413.6,2413.1,2.1132]
[1750440677120,3.2078,2413.9,2413.1,2.1132]
[1750440677330,3.2078,2413.9,2413.3,3.2078]
[1750440677526,3.2078,2413.9,2413.4,2.1132]
[1750440678828,2.2801,2414.3,2413.7,3.2078]
[1750440679125,14.58857783,2413.8,2413.0,3.2078]
[1750440679332,3.2078,2413.2,2412.3,4.3512]
[1750440679530,3.2078,2413.2,2412.5,5.3598]
[1750440679734,11.38077783,2413.4,2412.5,5.3598]
[1750440680027,11.38077783,2413.1,2412.5,5.3598]
[1750440680233,11.38077783,2413.1,2412.4,3.2078]
[1750440680435,11.38077783,2412.8,2412.4,2.152]
[1750440680623,5.3616,2413.0,2412.4,2.152]
[1750440680827,5.3616,2413.0,2412.2,0.06933781]
[1750440680828,14.58857783,2412.7,2412.2,0.06933781]
[1750440681134,3.2078,2412.9,2412.2,0.06933781]
[1750440681432,4.0366,2412.9,2412.3,2.12]
[1750440681632,2.2782,2412.8,2412.3,2.12]
[1750440681826,3.2078,2412.5,2412.3,2.12]
[1750440682034,11.38077783,2412.4,2412.2,0.06933781]
[1750440682531,8.4078,2412.5,2412.2,0.06933781]
[1750440682830,3.2078,2412.8,2412.3,2.12]
[1750440683231,3.2078,2412.5,2412.2,0.06933781]
[1750440683432,5.2,2412.7,2412.2,0.06933781]
[1750440683635,3.2078,2412.8,2412.3,2.12]
[1750440683830,54.9428,2413.3,2412.7,3.2078]
[1750440684029,68.47057783,2413.3,2412.7,3.2078]
[1750440684223,5.2,2413.2,2412.7,3.2078]
[1750440684427,11.38077783,2413.0,2412.7,3.2078]
[1750440684624,14.58857783,2413.0,2412.3,2.12]
[1750440684827,2.147,2412.9,2412.3,2.12]
[1750440685031,14.58857783,2413.0,2412.3,2.12]
[1750440685432,3.2078,2412.7,2412.3,2.12]
[1750440685630,11.38077783,2412.8,2412.2,3.27713781]
[1750440685830,3.2078,2413.0,2412.3,2.263]
[1750440686031,11.38077783,2412.5,2412.2,0.06933781]
[1750440686236,3.2078,2412.4,2412.2,0.06933781]
[1750440686836,3.2078,2412.5,2412.2,0.06933781]
[1750440687040,14.58857783,2412.5,2412.2,0.06933781]
[1750440687634,3.04737,2412.4,2412.2,0.06933781]
[1750440687835,2.2184,2412.4,2412.2,0.06933781]
[1750440688239,3.2078,2412.8,2412.3,3.2078]
[1750440688435,3.2078,2412.5,2412.2,0.06933781]
[1750440689543,11.38077783,2412.6,2412.2,0.06933781]
[1750440689736,3.2078,2412.8,2412.2,0.06933781]
[1750440690135,3.2078,2412.8,2412.3,5.3703]
[1750440690644,5.2,2413.2,2412.7,3.2078]
[1750440690935,11.38077783,2412.9,2412.3,3.2078]
[1750440691131,11.38077783,2412.9,2412.3,5.3703]
[1750440691336,51.089,2413.2,2412.3,5.3703]
[1750440691538,0.0828775,2413.2,2412.6,3.2078]
[1750440691739,0.0828775,2413.2,2412.9,3.2078]
[1750440691939,3.2078,2413.0,2412.3,3.2078]
[1750440692141,11.38077783,2412.9,2412.3,5.3703]
[1750440692638,0.82882,2412.8,2412.2,3.27713781]
[1750440692837,5.4793,2412.8,2412.2,0.06933781]
[1750440693038,6.30812,2412.8,2412.2,0.06933781]
[1750440693236,4.03675,2412.5,2412.2,0.06933781]
[1750440693542,14.58857783,2412.5,2411.4,3.2078]
[1750440693844,11.38077783,2412.1,2411.5,2.2987]
[1750440694038,3.2078,2412.2,2411.5,2.2987]
[1750440694239,4.03685,2412.2,2411.5,2.2987]
[1750440694441,2.246,2412.1,2411.7,3.2078]
[1750440694740,3.2078,2412.5,2411.7,3.2078]
[1750440694936,3.2078,2412.5,2411.8,2.2987]
[1750440695444,3.2078,2412.5,2412.3,0.06933781]
[1750440696847,14.58857783,2412.5,2412.3,0.06933781]
[1750440697345,0.82896,2412.4,2412.3,0.06933781]
[1750440697645,2.2767,2412.4,2411.7,3.2078]
[1750440697834,14.58857783,2412.1,2411.4,5.3518]
[1750440698039,14.58857783,2411.8,2411.4,3.2078]
[1750440698343,11.38077783,2411.5,2410.8,2.144]
[1750440698542,5.2,2411.4,2410.9,3.2078]
[1750440699340,2.29767308,2411.4,2411.3,3.2078]
[1750440699541,1.40090863,2411.4,2411.3,3.2078]
[1750440699734,2.29767308,2411.8,2411.3,5.4307]
[1750440699939,12.788238,2411.7,2411.3,5.4307]
[1750440700138,1.40746017,2411.6,2411.3,5.4307]
[1750440700344,1.40746017,2411.5,2411.3,5.4307]
[1750440700543,1.40746017,2411.4,2411.3,5.4307]
[1750440700947,1.40746017,2411.4,2411.3,10.4307]
[1750440701147,5.50547308,2412.0,2411.3,10.4307]
[1750440701346,3.67848977,2411.9,2411.6,3.2078]
[1750440701538,1.38081669,2411.8,2411.7,2.2229]
[1750440701740,5.36123719,2412.7,2411.7,13.60367783]
[1750440702044,2.29767308,2413.2,2412.6,14.58857783]
[1750440702244,2.29767308,2413.5,2413.1,3.2078]
[1750440702443,2.29767308,2413.6,2413.2,2.2506]
[1750440702645,2.29767308,2413.7,2413.5,3.2078]
[1750440703047,2.29767308,2413.8,2413.5,3.2078]
[1750440703340,2.29767308,2413.9,2413.5,3.2078]
[1750440703548,2.29767308,2413.9,2413.6,2.2506]
[1750440704338,16.88625091,2414.1,2413.5,3.2078]
[1750440704649,2.29767308,2414.0,2413.4,3.2078]
[1750440704852,2.2522,2414.0,2413.5,2.2506]
[1750440705049,5.50547308,2414.1,2413.5,2.2506]
[1750440705348,3.2078,2414.1,2413.5,2.2506]
[1750440705539,5.2,2414.2,2413.7,3.2078]
[1750440705739,3.2078,2414.4,2413.8,2.1745]
[1750440705943,2.29767308,2414.6,2414.0,3.2078]
[1750440706144,3.2078,2414.8,2414.1,2.1745]
[1750440706350,5.50547308,2415.1,2414.3,3.2078]
[1750440706545,11.38077783,2415.0,2414.4,2.1745]
[1750440706854,0.82829,2414.4,2413.5,3.2078]
[1750440707045,3.2078,2414.1,2413.5,5.3823]
[1750440708352,11.38077783,2413.8,2413.5,3.2078]
[1750440708557,14.58857783,2413.8,2413.0,3.2078]
[1750440708750,3.2078,2413.8,2413.1,2.1854]
[1750440708949,2.1796,2414.0,2413.3,3.2078]
[1750440709249,3.2078,2413.8,2413.3,3.2078]
[1750440709946,16.76817783,2413.8,2413.3,3.2078]
[1750440710251,16.76817783,2413.8,2412.9,3.2078]
[1750440710252,14.58857783,2413.5,2412.9,3.2078]
[1750440710548,11.38077783,2413.2,2412.9,3.2078]
[1750440710854,3.2078,2413.0,2411.9,3.2078]
[1750440711050,3.2078,2412.7,2411.9,5.3932]
[1750440711244,3.2078,2412.8,2411.9,5.3932]
[1750440711643,3.2078,2413.1,2412.3,11.38077783]
[1750440711849,3.2078,2413.6,2413.0,3.2078]
[1750440712147,3.2078,2413.6,2413.1,2.0829]
[1750440713849,3.2078,2413.3,2413.1,2.0829]
[1750440714352,3.2078,2414.1,2413.1,21.67147783]
[1750440714653,3.2078,2414.1,2413.7,3.27713781]
[1750440714848,3.2078,2414.1,2413.8,2.0731]
[1750440715449,3.2078,2414.1,2413.4,3.2078]
[1750440715943,3.2078,2414.1,2413.5,2.0731]
[1750440716748,3.2078,2414.6,2414.0,3.2078]
[1750440716956,3.2078,2414.6,2414.1,2.0731]
[1750440717852,11.38077783,2414.2,2413.7,3.2078]
[1750440718148,11.38077783,2413.9,2413.4,3.2078]
[1750440718347,3.2078,2414.3,2413.4,3.2078]
[1750440718559,11.38077783,2414.2,2413.5,2.2178]
[1750440718751,2.105,2414.2,2413.5,2.2178]
[1750440718951,13.48577783,2414.2,2413.5,2.2178]
[1750440719657,2.105,2414.2,2413.5,2.2178]
[1750440720155,13.48577783,2414.2,2413.5,2.2178]
[1750440720357,14.58857783,2413.6,2412.8,3.2078]
[1750440720555,2.2522,2414.1,2413.1,3.2078]
[1750440720760,3.2078,2413.9,2413.2,2.115]
[1750440720961,11.38077783,2413.4,2412.7,3.2078]
[1750440721259,11.38077783,2412.8,2412.1,2.115]
[1750440721456,11.38077783,2412.8,2412.3,3.2078]
[1750440721654,5.4914,2413.4,2412.7,3.2078]
[1750440721955,15.41737783,2412.9,2412.3,3.2078]
[1750440722159,3.2078,2412.6,2412.1,2.115]
[1750440722354,3.2078,2412.4,2412.0,3.2078]
[1750440722562,11.38077783,2412.3,2411.7,3.2078]
[1750440722853,3.2078,2412.4,2411.7,3.2078]
[1750440723055,11.38077783,2412.0,2411.6,2.115]
[1750440723256,11.38077783,2412.0,2411.4,3.2078]
[1750440723453,5.2,2412.5,2410.9,3.2078]
[1750440723454,3.2078,2411.5,2410.9,3.2078]
[1750440723853,11.38077783,2411.4,2410.9,3.2078]
[1750440724067,3.2078,2411.1,2410.6,3.2078]
[1750440724261,2.0821,2411.8,2409.8,2.2825]
[1750440724262,3.2078,2411.5,2410.9,3.2078]
[1750440724460,2.0821,2411.8,2411.2,3.2078]
[1750440724653,3.2078,2411.9,2411.5,3.2078]
[1750440725256,3.2078,2411.6,2410.6,3.2078]
[1750440725460,11.38077783,2411.4,2410.6,3.2078]
[1750440725660,3.2078,2411.2,2410.7,2.2406]
[1750440726560,3.2078,2411.2,2410.6,3.2078]
[1750440726859,5.2,2411.3,2410.6,3.2078]
[1750440727053,16.58077783,2411.3,2410.6,3.2078]
[1750440727255,11.38077783,2411.0,2410.2,3.2078]
[1750440727457,3.2078,2410.8,2410.2,3.2078]
[1750440727657,2.261,2410.9,2410.5,3.2078]
[1750440727855,11.38077783,2411.0,2410.5,3.2078]
[1750440728265,13.64177783,2411.0,2410.5,3.2078]
[1750440728766,2.261,2411.0,2410.5,3.2078]
[1750440729465,3.2078,2411.1,2410.5,3.2078]
[1750440729666,3.2078,2411.1,2410.6,2.14]
[1750440729866,3.2078,2411.5,2410.9,3.2078]
[1750440730066,3.2078,2411.5,2411.0,2.14]
[1750440730467,5.2,2411.7,2411.0,5.3478]
[1750440730669,8.4078,2411.7,2411.0,5.3478]
[1750440730869,3.2078,2411.4,2411.0,3.2078]
[1750440731073,11.38077783,2411.2,2410.7,3.2078]
[1750440731373,3.2078,2411.1,2410.6,3.2078]
[1750440731576,3.2078,2411.1,2410.7,2.14]
[1750440731772,11.38077783,2411.2,2410.7,2.14]
[1750440732069,5.2,2411.7,2410.7,2.14]
[1750440732070,5.2,2411.7,2410.8,3.2078]
[1750440732267,5.2,2411.7,2411.1,3.2078]
[1750440732466,5.2,2411.7,2411.2,2.14]
[1750440732870,11.38077783,2411.5,2411.1,3.2078]
[1750440733072,3.2078,2411.6,2411.1,3.2078]
[1750440733269,3.2078,2412.0,2411.4,3.2078]
[1750440733465,2.2879,2413.1,2411.7,14.58857783]
[1750440733667,3.2078,2413.4,2412.9,0.06933781]
[1750440734163,14.58857783,2413.4,2412.9,0.06933781]
[1750440734361,0.08287407,2413.3,2412.9,0.06933781]
[1750440734772,0.08287407,2413.3,2413.0,2.1815]
[1750440735069,3.2078,2413.1,2412.9,0.06933781]
[1750440735269,0.08288437,2413.0,2412.9,0.06933781]
[1750440736869,3.2078,2413.9,2412.9,8.27713781]
[1750440737073,0.08285347,2413.9,2413.5,3.2078]
[1750440737280,5.28285347,2413.9,2413.5,3.2078]
[1750440737571,5.28285347,2413.9,2413.2,3.2078]
[1750440737771,5.28285347,2413.9,2411.0,0.37310343]
[1750440737772,14.58857783,2413.4,2411.7,3.2078]
[1750440737972,11.38077783,2412.0,2411.6,3.2078]
[1750440738180,3.2078,2411.9,2411.3,3.2078]
[1750440738378,11.38077783,2412.0,2411.3,3.2078]
[1750440738575,5.3056,2412.2,2411.3,3.2078]
[1750440738877,11.38077783,2412.1,2411.4,3.2078]
[1750440739074,3.2078,2412.2,2411.4,3.2078]
[1750440739280,11.38077783,2412.1,2411.4,3.2078]
[1750440739572,11.38077783,2411.8,2411.4,3.2078]
[1750440739781,11.38077783,2411.7,2411.4,3.2078]
[1750440739973,11.38077783,2411.7,2410.4,4.2934]
[1750440739974,3.2078,2411.5,2410.8,3.2078]
[1750440740177,11.38077783,2411.4,2410.8,3.2078]
[1750440740371,13.57137783,2411.4,2410.8,3.2078]
[1750440740873,13.57137783,2411.4,2410.5,3.2078]
[1750440741279,3.2078,2410.8,2410.5,3.2078]
[1750440741478,3.2078,2411.2,2410.5,3.2078]
[1750440741979,3.2078,2411.2,2410.2,3.2078]
[1750440742376,11.38077783,2410.8,2410.2,3.2078]
[1750440742668,11.38077783,2410.8,2409.9,3.2078]
[1750440742873,14.58857783,2410.5,2409.9,3.2078]
[1750440743672,2.2597,2410.4,2409.9,3.2078]
[1750440743873,11.38077783,2410.2,2409.5,3.2078]
[1750440744078,14.58857783,2409.9,2409.6,0.08300132]
[1750440744379,3.08938,2410.4,2409.6,0.08300132]
[1750440744380,2.2597,2410.1,2409.6,0.08300132]
[1750440745083,3.2078,2409.9,2409.6,0.08300132]
[1750440745471,11.38077783,2409.7,2409.6,0.08300132]
[1750440745879,3.2078,2409.9,2409.6,5.08300132]
[1750440746073,3.2078,2409.9,2409.6,0.08300132]
[1750440746279,11.38077783,2409.9,2409.2,3.2078]
[1750440746684,3.2078,2410.1,2409.2,3.2078]
[1750440747075,3.2078,2410.4,2409.9,3.2078]
[1750440747279,3.2078,2410.7,2410.0,3.2078]
[1750440747471,11.38077783,2410.6,2409.7,3.2078]
[1750440747680,14.58857783,2410.3,2409.7,3.2078]
[1750440748175,3.2078,2410.9,2410.0,3.2078]
[1750440748476,11.38077783,2410.8,2410.0,3.2078]
[1750440749082,8.4078,2410.9,2410.0,3.2078]
[1750440749285,11.38077783,2411.6,2410.7,3.2078]
[1750440749473,3.2078,2411.8,2411.0,3.2078]
[1750440749677,3.2078,2411.2,2410.6,3.2078]
[1750440749879,11.38077783,2411.0,2410.6,3.2078]
[1750440750079,3.2078,2410.9,2410.3,3.2078]
[1750440750480,3.2078,2410.9,2410.4,2.2107]
[1750440751682,5.2,2411.7,2410.6,3.2078]
[1750440751988,16.81127783,2411.9,2411.1,3.2078]
[1750440752179,11.38077783,2411.9,2411.4,3.2078]
[1750440752379,3.2078,2411.6,2411.1,3.2078]
[1750440752575,14.58857783,2411.6,2410.8,3.2078]
[1750440752883,3.2078,2412.0,2411.4,3.2078]
[1750440753086,4.3723,2412.2,2411.5,2.2542]
[1750440753283,18.96087783,2412.2,2411.5,2.2542]
[1750440753581,3.2078,2412.2,2411.7,3.2078]
[1750440753784,19.4018,2412.7,2412.0,3.2078]
[1750440754081,3.2078,2412.3,2412.1,2.1808]
[1750440754287,11.38077783,2412.2,2411.5,3.2078]
[1750440754490,11.38077783,2412.2,2411.6,2.1808]
[1750440755281,3.2078,2412.3,2411.6,2.1808]
[1750440755878,11.38077783,2412.0,2411.5,3.2078]
[1750440756086,11.38077783,2411.7,2411.2,3.2078]
[1750440756282,11.38077783,2411.7,2411.3,2.1808]
[1750440756585,11.38077783,2411.7,2411.2,3.2078]
[1750440756785,2.2029,2411.6,2411.2,3.2078]
[1750440757487,11.38077783,2411.7,2411.2,3.2078]
[1750440757680,2.2314,2411.6,2411.2,3.2078]
[1750440758685,3.2078,2411.8,2411.2,3.2078]
[1750440758987,5.4527,2412.1,2411.3,2.3211]
[1750440759390,3.2078,2412.1,2411.3,2.3211]
[1750440759689,3.2078,2412.1,2411.5,3.2078]
[1750440759882,3.2078,2412.1,2411.6,2.3211]
[1750440761184,11.38077783,2412.0,2411.5,3.2078]
[1750440761492,13.69027783,2412.0,2411.5,3.2078]
[1750440762585,11.38077783,2412.0,2411.5,3.2078]
[1750440762781,3.2078,2412.1,2411.5,3.2078]
[1750440762987,3.2078,2412.1,2411.6,2.2039]
[1750440763390,3.2078,2412.6,2412.0,3.2078]
[1750440763678,3.2078,2412.6,2412.1,2.3505]
[1750440763885,14.58857783,2412.6,2412.1,2.3505]
[1750440764186,14.58857783,2412.6,2411.0,3.2078]
[1750440764187,2.07266,2412.1,2411.0,3.2078]
[1750440764386,14.58857783,2412.2,2411.4,3.2078]
[1750440764387,4.57000246,2412.0,2411.4,3.2078]
[1750440764584,3.2078,2412.0,2411.4,3.2078]
[1750440764785,8.4078,2412.0,2411.5,2.3505]
[1750440764992,19.78857783,2412.0,2411.1,3.2078]
[1750440765190,19.78857783,2412.0,2411.2,2.3505]
[1750440765387,19.78857783,2412.0,2411.4,3.2078]
[1750440765586,2.158,2411.9,2411.4,3.2078]
[1750440766585,3.2078,2411.6,2410.9,3.2078]
[1750440767089,11.38077783,2411.1,2410.6,2.2953]
[1750440768091,3.2078,2410.9,2410.6,2.2953]
[1750440768386,3.2078,2411.3,2410.7,3.2078]
[1750440768694,3.2078,2411.6,2411.0,3.2078]
[1750440768895,3.2078,2412.5,2411.5,14.58857783]
[1750440769204,8.4078,2412.5,2412.0,3.2078]
[1750440769495,11.38077783,2412.1,2411.2,3.2078]
[1750440769684,3.2078,2412.2,2411.6,3.2078]
[1750440769887,3.2078,2412.2,2411.7,2.2111]
[1750440770292,8.4078,2412.5,2412.0,3.2078]
[1750440770487,8.4078,2412.5,2411.7,2.2111]
[1750440770488,11.38077783,2412.4,2411.7,5.4189]
[1750440770688,3.2078,2411.8,2411.4,0.06933781]
[1750440771194,15.41776783,2411.8,2411.4,0.06933781]
[1750440771396,14.58857783,2411.8,2411.4,0.06933781]
[1750440771590,3.2078,2411.5,2411.4,0.06933781]
[1750440771993,19.58857783,2411.5,2410.8,5.4189]
[1750440772191,2.2746,2411.4,2410.8,5.4189]
[1750440772699,3.2078,2411.1,2410.5,3.2078]
[1750440772996,5.4824,2411.4,2410.5,3.2078]
[1750440773298,3.2078,2411.1,2410.6,2.2973]
[1750440774000,3.2078,2411.4,2410.6,2.2973]
[1750440774292,11.38077783,2411.2,2410.6,2.2973]
[1750440774497,11.38077783,2410.9,2410.5,3.2078]
[1750440774797,3.2078,2411.0,2410.5,3.2078]
[1750440774992,3.2078,2411.0,2410.6,2.2973]
[1750440776093,11.38077783,2410.9,2410.5,3.2078]
[1750440776288,3.2078,2411.0,2410.5,3.2078]
[1750440777391,14.58857783,2411.0,2410.5,3.2078]
[1750440777590,2.2201,2410.9,2410.5,3.2078]
[1750440778699,3.04959,2410.9,2410.5,3.2078]
[1750440778894,11.38077783,2410.7,2410.5,3.2078]
[1750440779097,2.3821,2410.6,2410.5,3.2078]
[1750440779595,3.2078,2411.0,2410.5,3.2078]
[1750440779995,5.2,2411.3,2410.8,3.2078]
[1750440780390,5.2,2411.3,2410.1,2.3428]
[1750440780391,14.58857783,2410.9,2410.4,3.2078]
[1750440780594,14.58857783,2410.5,2410.1,3.2078]
[1750440780899,15.41829783,2410.2,2409.4,2.3179]
[1750440781196,15.41829783,2410.2,2409.3,3.2078]
[1750440781197,11.38077783,2409.6,2409.3,3.2078]
[1750440781400,3.2078,2409.5,2408.6,2.3847]
[1750440781702,11.38077783,2409.2,2408.6,5.5925]
[1750440781904,3.2078,2408.9,2408.3,3.2078]
[1750440782404,0.83039,2408.3,2407.4,3.2078]
[1750440782694,3.2078,2408.1,2407.4,3.2078]
[1750440782896,3.2078,2407.8,2407.3,2.3847]
[1750440783092,5.2,2407.7,2407.1,3.2078]
[1750440783294,25.96935566,2407.2,2405.3,3.2078]
[1750440783498,25.96935566,2407.2,2405.2,2.3847]
[1750440783499,14.58857783,2406.1,2405.2,2.3847]
[1750440783697,104.82939727,2407.1,2405.0,3.2078]
[1750440783698,14.58857783,2405.8,2405.3,0.08314971]
[1750440783907,11.38077783,2405.4,2404.1,3.2078]
[1750440784098,3.2078,2405.0,2403.8,3.28016101]
[1750440784302,4.575,2405.3,2404.2,3.2078]
[1750440784502,2.2342,2405.7,2404.2,3.2078]
[1750440784503,7.4342,2405.7,2404.9,3.2078]
[1750440784705,5.641,2405.6,2404.7,3.2078]
[1750440784902,45.9698,2406.7,2405.5,3.2078]
[1750440785198,2.4332,2406.2,2406.0,3.2078]
[1750440785400,2.4332,2406.2,2405.7,3.2078]
[1750440785592,2.2342,2406.8,2406.0,3.2078]
[1750440785794,2.2342,2406.8,2406.1,3.2078]
[1750440786099,8.4078,2407.3,2406.4,3.2078]
[1750440786297,5.641,2407.7,2406.6,3.2078]
[1750440786497,5.641,2407.7,2405.6,15.82]
[1750440786498,2.4332,2407.7,2407.4,3.2078]
[1750440786702,2.3377,2407.9,2407.4,3.2078]
[1750440787004,11.38077783,2408.8,2407.7,3.2078]
[1750440787198,3.2078,2409.1,2408.1,3.2078]
[1750440787394,3.2078,2409.4,2408.7,3.2078]
[1750440787604,11.38077783,2409.2,2408.4,15.82]
[1750440787807,11.38077783,2408.6,2408.4,3.2078]
[1750440788002,3.2078,2408.9,2408.4,3.2078]
[1750440788196,11.38077783,2409.6,2408.8,3.2078]
[1750440788498,0.08300477,2409.5,2409.2,3.2078]
[1750440788698,0.08300477,2409.5,2408.9,5.5228]
[1750440788898,11.38077783,2409.3,2408.9,3.2078]
[1750440789101,2.3022,2409.4,2409.2,3.2078]
[1750440789302,0.08300477,2409.5,2408.4,2.315]
[1750440789506,11.38077783,2409.3,2408.7,3.2078]
[1750440789802,0.08300477,2409.5,2408.3,15.82]
[1750440789803,11.38077783,2409.0,2408.3,19.0278]
[1750440789999,11.38077783,2409.0,2408.3,3.2078]
[1750440790202,14.58857783,2408.7,2408.3,3.2078]
[1750440790406,11.38077783,2408.7,2408.1,3.2078]
[1750440790808,11.38077783,2408.4,2408.1,3.2078]
[1750440791002,3.2078,2409.6,2408.3,11.38077783]
[1750440791302,11.38077783,2410.1,2407.3,56.2806]
[1750440791303,11.38077783,2408.9,2408.4,3.2078]
[1750440791504,11.38077783,2408.6,2407.9,3.2078]
[1750440791711,14.58857783,2408.2,2407.6,3.2078]
[1750440791913,11.38077783,2408.5,2407.6,3.2078]
[1750440792106,14.58857783,2408.5,2407.6,3.2078]
[1750440792503,14.58857783,2408.5,2407.3,15.821]
[1750440792504,3.2078,2407.7,2406.5,3.2078]
[1750440792797,5.581,2408.8,2407.5,14.58857783]
[1750440793002,5.2,2408.7,2405.0,0.77253396]
[1750440793204,11.38077783,2407.3,2406.8,3.2078]
[1750440793404,11.38077783,2407.0,2406.4,3.2078]
[1750440793612,11.38077783,2407.0,2406.5,3.2078]
[1750440793804,3.2078,2407.4,2406.5,3.2078]
[1750440794103,11.38077783,2406.7,2406.2,3.2078]
[1750440794303,11.38077783,2406.4,2406.2,3.2078]
[1750440794505,11.38077783,2406.7,2406.2,3.2078]
[1750440795105,3.2078,2406.9,2406.1,3.2078]
[1750440795312,11.38077783,2407.0,2406.4,3.2078]
[1750440795614,14.58857783,2407.0,2406.4,3.2078]
[1750440795806,11.38077783,2407.0,2406.5,2.3506]
[1750440796210,11.38077783,2407.0,2406.4,3.2078]
[1750440796211,11.38077783,2406.7,2406.4,3.2078]
[1750440796411,11.38077783,2406.7,2406.1,3.2078]
[1750440796611,11.38077783,2406.7,2406.0,2.3506]
[1750440796612,3.2078,2406.3,2405.7,3.2078]
[1750440796803,11.38077783,2406.1,2405.7,3.2078]
[1750440797606,11.38077783,2405.8,2405.0,3.2078]
[1750440797807,11.38077783,2405.2,2404.7,3.2078]
[1750440798110,3.2078,2405.7,2404.3,2.3754]
[1750440798111,3.2078,2405.7,2405.0,3.2078]
[1750440798307,14.58857783,2406.0,2405.4,3.2078]
[1750440798606,11.38077783,2405.7,2405.2,3.2078]
[1750440798805,16.58077783,2405.6,2404.9,3.2078]
[1750440799012,3.2078,2406.0,2405.5,3.2078]
[1750440799212,3.2078,2406.0,2405.0,2.2433]
[1750440799213,11.38077783,2405.6,2405.1,3.2078]
[1750440799408,11.38077783,2405.2,2404.7,3.2078]
[1750440799610,11.38077783,2405.2,2405.0,3.2078]
[1750440799916,5.2,2405.5,2404.8,2.2231]
[1750440799917,5.2,2405.5,2404.8,5.4309]
[1750440800115,11.38077783,2405.3,2404.8,2.2231]
[1750440800309,3.2078,2405.4,2405.0,3.2078]
[1750440800607,11.38077783,2405.8,2405.3,3.2078]
[1750440800910,11.38077783,2406.4,2405.5,3.2078]
[1750440801110,0.08311515,2406.3,2405.5,11.38077783]
[1750440801311,0.08311515,2406.3,2406.2,3.2078]
[1750440801610,0.08311515,2406.3,2405.4,3.2078]
[1750440801814,11.38077783,2405.9,2405.4,3.2078]
[1750440802007,11.38077783,2405.9,2405.1,3.2078]
[1750440802210,11.38077783,2405.9,2405.7,3.2078]
[1750440802411,2.3757,2406.2,2405.7,3.2078]
[1750440802610,11.38077783,2406.0,2405.7,3.2078]
[1750440802811,11.38077783,2406.0,2405.4,3.2078]
[1750440803118,11.38077783,2406.0,2405.8,3.2078]
[1750440803315,11.46389298,2406.3,2405.8,3.2078]
[1750440803511,0.08311515,2406.3,2405.9,2.2588]
[1750440803713,5.5755,2407.4,2406.1,3.2078]
[1750440803918,0.08308062,2407.3,2406.5,3.2078]
[1750440804112,0.08308062,2407.3,2407.1,3.2078]
[1750440804307,0.08308062,2407.3,2407.2,2.2588]
[1750440804517,4.7218,2408.2,2407.2,2.2588]
[1750440804518,11.38077783,2408.2,2407.2,2.2588]
[1750440804820,11.38077783,2408.2,2406.6,54.2654]
[1750440804821,11.38077783,2407.4,2407.3,3.2078]
[1750440805118,11.38077783,2408.0,2407.3,3.2078]
[1750440805310,7.9296,2408.1,2407.3,3.2078]
[1750440805311,11.38077783,2407.7,2407.3,3.2078]
[1750440805507,11.38077783,2408.1,2407.6,3.2078]
[1750440806015,11.38077783,2408.1,2407.0,15.451]